bitfinex-derivatives/quotes_SOLF0:USTF0_20260121
["timestamp","ask_amount","ask_price","bid_price","bid_amount"]
[1768995503044,0.05886272,127.61,127.56,10.54267412]
[1768995508845,2.09855799,127.6,127.54,10.54347412]
[1768995509051,3.24653839,127.59,127.52,3.47987412]
[1768995509243,2.09855799,127.58,127.52,3.47987412]
[1768995509447,0.0573136,127.57,127.52,3.47987412]
[1768995509947,0.0573136,127.57,127.52,10.54437412]
[1768995510148,0.0573136,127.57,127.53,3.47987412]
[1768995510349,0.0573136,127.57,127.53,3.53601193]
[1768995511146,0.0573136,127.57,127.53,10.60051193]
[1768995520259,0.0573136,127.57,127.53,3.53601193]
[1768995534166,7.1198136,127.57,127.53,3.53601193]
[1768995534363,5.31776724,127.57,127.53,0.05613781]
[1768995534563,5.31776724,127.57,127.51,3.35402369]
[1768995534761,3.21763267,127.57,127.51,3.35402369]
[1768995534963,5.31776724,127.57,127.51,3.35402369]
[1768995535471,7.0633,127.56,127.51,3.35402369]
[1768995535860,7.0633,127.56,127.52,0.05921428]
[1768995537363,7.0634,127.55,127.52,0.05921428]
[1768995558291,10.4986464,127.55,127.52,0.05921428]
[1768995558693,10.4986464,127.55,127.5,7.0661]
[1768995559896,0.05906667,127.54,127.5,7.0661]
[1768995562797,0.05906667,127.54,127.5,10.52958138]
[1768995571103,0.05906667,127.54,127.51,0.03676911]
[1768995573204,3.49431307,127.54,127.51,0.03676911]
[1768995576610,10.55841307,127.54,127.51,0.03676911]
[1768995576811,10.55841307,127.54,127.49,10.53018138]
[1768995578915,10.55841307,127.54,127.49,3.46348138]
[1768995588620,7.0645,127.53,127.49,3.46348138]
[1768995588823,3.32794805,127.53,127.47,3.48063593]
[1768995589222,0.05589062,127.51,127.47,3.48063593]
[1768995602328,3.28066019,127.51,127.45,5.31636975]
[1768995602530,3.28066019,127.51,127.45,3.21494046]
[1768995602829,10.29096957,127.5,127.45,3.21494046]
[1768995608026,10.29156957,127.49,127.43,10.28474046]
[1768995608433,0.05089714,127.47,127.43,10.28474046]
[1768995610434,0.05089714,127.47,127.43,3.21494046]
[1768995628943,0.05089714,127.47,127.43,10.28494046]
[1768995631447,0.05089714,127.47,127.44,7.0695]
[1768995637452,0.05089714,127.47,127.43,10.28494046]
[1768995640457,3.46709116,127.46,127.41,3.4321515]
[1768995642056,3.46709116,127.46,127.41,10.5033515]
[1768995642666,3.46709116,127.46,127.41,3.4321515]
[1768995642864,3.46709116,127.46,127.4,195.340914]
[1768995643263,3.52650423,127.44,127.38,3.4321515]
[1768995644864,3.46709116,127.43,127.38,3.4321515]
[1768995645862,10.53729116,127.43,127.38,3.4321515]
[1768995646567,7.0706,127.42,127.38,3.4321515]
[1768995646766,3.24582577,127.41,127.36,3.38161527]
[1768995647163,0.05980827,127.4,127.36,3.38161527]
[1768995648264,3.30563404,127.4,127.35,15.91725696]
[1768995648660,3.30563404,127.4,127.35,19.29887223]
[1768995649871,0.05980827,127.4,127.36,3.38161527]
[1768995650062,0.05980827,127.4,127.37,3.38161527]
[1768995651772,3.24582577,127.45,127.38,3.38161527]
[1768995651967,3.24582577,127.45,127.39,2.10514529]
[1768995652277,10.31412577,127.47,127.4,3.38161527]
[1768995652959,0.05687039,127.45,127.4,3.38161527]
[1768995653974,0.05687039,127.45,127.41,3.38161527]
[1768995656878,0.05687039,127.45,127.41,10.45281527]
[1768995660684,0.05687039,127.45,127.42,0.05253389]
[1768995664482,7.12597039,127.45,127.42,0.05253389]
[1768995665384,3.25939085,127.45,127.37,9.17804529]
[1768995665682,3.20252046,127.45,127.37,9.17804529]
[1768995666385,0.05420811,127.42,127.37,9.17804529]
[1768995667379,0.05420811,127.42,127.38,2.19596564]
[1768995670680,9.17414529,127.45,127.4,2.19596564]
[1768995670681,3.20252046,127.45,127.4,2.19596564]
[1768995671779,0.05113957,127.44,127.4,2.19596564]
[1768995671979,7.0701,127.43,127.4,2.19596564]
[1768995672286,0.05113957,127.44,127.4,2.19596564]
[1768995673886,7.0702,127.43,127.37,7.0734]
[1768995674387,0.05001343,127.41,127.37,7.0734]
[1768995674787,0.05001343,127.41,127.35,18.02240225]
[1768995674991,3.20252046,127.45,127.37,2.10514529]
[1768995675890,7.07,127.44,127.38,7.0727]
[1768995676092,0.05048262,127.42,127.4,0.05814161]
[1768995676786,7.07,127.44,127.4,0.05814161]
[1768995676787,3.47273495,127.48,127.4,0.05814161]
[1768995676986,3.47273495,127.48,127.39,2.10514529]
[1768995677987,0.0538233,127.45,127.42,0.05475059]
[1768995683196,3.47273495,127.48,127.43,2.10514529]
[1768995683387,3.47273495,127.5,127.43,2.10514529]
[1768995683997,3.47273495,127.5,127.43,9.17524529]
[1768995684400,0.05851085,127.48,127.43,9.17524529]
[1768995684592,0.05851085,127.48,127.45,0.05740894]
[1768995690598,0.05851085,127.48,127.45,7.12640894]
[1768995718923,2.10265701,127.51,127.45,7.12640894]
[1768995719314,5.55451208,127.51,127.45,7.12640894]
[1768995719515,9.16775701,127.52,127.46,7.0684]
[1768995720025,0.05448054,127.5,127.46,7.0684]
[1768995720417,0.05448054,127.5,127.44,2.10265701]
[1768995720621,3.45185507,127.53,127.44,112.06965701]
[1768995720814,3.45185507,127.53,127.46,0.04976958]
[1768995721013,3.45185507,127.55,127.46,112.10202659]
[1768995721221,3.45185507,127.55,127.47,109.9447]
[1768995721722,3.45185507,127.55,127.5,7.066]
[1768995721923,0.05387938,127.52,127.5,7.066]
[1768995722427,3.45185507,127.55,127.5,7.11660116]
[1768995723426,0.04979013,127.54,127.5,7.11660116]
[1768995724626,0.04979013,127.54,127.5,0.05060116]
[1768995728534,3.5016452,127.54,127.5,0.05060116]
[1768995732040,3.5016452,127.54,127.47,2.10265701]
[1768995732539,3.45185507,127.53,127.47,2.10265701]
[1768995733140,0.05322985,127.51,127.49,0.05891866]
[1768995734435,3.45185507,127.55,127.49,2.16157567]
[1768995735237,10.51535507,127.55,127.49,2.16157567]
[1768995735546,0.05822658,127.53,127.49,2.16157567]
[1768995735935,0.05822658,127.53,127.49,0.05891866]
[1768995736136,0.05822658,127.53,127.49,2.16157567]
[1768995738043,0.05822658,127.53,127.49,9.22827567]
[1768995741945,10.21555151,127.56,127.5,7.0661]
[1768995742343,3.15265151,127.56,127.5,7.0661]
[1768995743250,0.059249,127.54,127.52,0.0557893]
[1768995748747,0.059249,127.54,127.49,7.0667]
[1768995749852,0.059249,127.54,127.5,0.05311383]
[1768995755256,7.123349,127.54,127.5,0.05311383]
[1768995765257,0.059249,127.54,127.5,7.11911383]
[1768995771264,10.2375156,127.57,127.51,7.0656]
[1768995772366,0.05437487,127.55,127.53,0.05422231]
[1768995778069,10.2375156,127.57,127.53,0.05422231]
[1768995779155,0.0580117,127.56,127.53,0.05422231]
[1768995780865,3.26440653,127.59,127.53,0.05422231]
[1768995781060,3.26440653,127.59,127.51,2.10029657]
[1768995781467,3.26440653,127.59,127.54,7.064]
[1768995781868,0.05524723,127.58,127.55,0.05204069]
[1768995785158,3.31965376,127.58,127.55,0.05204069]
[1768995785364,3.31965376,127.58,127.53,7.0644]
[1768995786369,3.31965376,127.58,127.54,0.05778792]
[1768995797380,10.38145376,127.58,127.54,0.05778792]
[1768995808091,3.31965376,127.58,127.54,0.05778792]
[1768995811294,10.38145376,127.58,127.54,0.05778792]
[1768995820501,3.31965376,127.58,127.54,0.05778792]
[1768995842720,3.31965376,127.58,127.51,14.63054341]
[1768995842925,3.16989203,127.56,127.48,16.72983134]
[1768995843222,3.16989203,127.56,127.48,377.26986328]
[1768995844026,3.16989203,127.56,127.51,0.05083692]
[1768995844833,0.05618666,127.55,127.51,0.05083692]
[1768995845023,0.05618666,127.55,127.51,7.11603692]
[1768995863750,10.3190546,127.58,127.52,7.065]
[1768995864649,3.2571546,127.57,127.52,7.065]
[1768995864854,3.2571546,127.57,127.54,0.05669105]
[1768995869149,3.30857208,127.57,127.54,0.05669105]
[1768995900976,0.10348716,127.54,127.48,250.60643194]
[1768995901378,2.09970732,127.59,127.5,3.35696034]
[1768995901975,2.09970732,127.59,127.53,0.05388567]
[1768995902383,0.04979183,127.57,127.53,0.05388567]
[1768995903789,0.02608729,127.56,127.53,0.05388567]
[1768995904491,0.02608729,127.56,127.5,3.35696034]
[1768995904492,0.02608729,127.56,127.5,10.42266034]
[1768995905595,0.05203564,127.54,127.5,10.42266034]
[1768995910907,0.05203564,127.54,127.5,3.35696034]
[1768995911803,0.05203564,127.54,127.48,261.03059228]
[1768995912008,0.05203564,127.54,127.5,0.05641884]
[1768995914705,0.05203564,127.54,127.5,10.47957918]
[1768995915610,0.05203564,127.54,127.51,3.48242891]
[1768995916310,7.0628,127.57,127.51,7.0654]
[1768995916515,7.0618,127.58,127.52,3.48242891]
[1768995917317,7.0618,127.58,127.52,10.54742891]
[1768995917618,0.05435037,127.56,127.54,0.05326424]
[1768995921318,9.16070732,127.6,127.54,0.05326424]
[1768995922422,0.05403525,127.58,127.54,0.05326424]
[1768995925325,0.05403525,127.58,127.54,7.11726424]
[1768995929029,0.05403525,127.58,127.55,3.48242891]
[1768995929721,7.061,127.6,127.55,3.48242891]
[1768995930226,7.061,127.6,127.55,10.54572891]
[1768995930725,7.0613,127.59,127.54,0.05326424]
[1768995930927,2.09970732,127.62,127.52,3.48242891]
[1768995931224,2.09970732,127.62,127.55,0.05044205]
[1768995931627,7.0607,127.6,127.55,3.53287096]
[1768995932930,7.0607,127.6,127.55,10.59617096]
[1768995933726,0.04985804,127.59,127.55,10.59617096]
[1768995934624,23.56,127.63,127.56,7.0627]
[1768995934825,25.65970732,127.63,127.56,7.0627]
[1768995935030,25.65970732,127.63,127.56,10.54512891]
[1768995935217,7.0596,127.62,127.56,10.54512891]
[1768995935421,7.0596,127.62,127.57,7.0623]
[1768995935618,196.45298052,127.64,127.57,3.48242891]
[1768995935824,32.71860732,127.64,127.58,0.05126681]
[1768995936231,0.05445298,127.62,127.58,7.11296681]
[1768995939932,0.05445298,127.62,127.58,10.59539572]
[1768995942434,0.05445298,127.62,127.59,7.0612]
[1768995942929,30.6179,127.66,127.6,10.54302891]
[1768995943535,7.0579,127.66,127.6,10.54302891]
[1768995944137,7.0579,127.66,127.62,0.0538536]
[1768995948243,0.05845812,127.65,127.62,0.0538536]
[1768995963550,9.21382874,127.65,127.59,10.52950061]
[1768995963742,2.09747062,127.65,127.56,3.46830061]
[1768995964655,2.09747062,127.65,127.59,0.05682327]
[1768995965051,7.0584,127.64,127.59,0.05682327]
[1768995965647,9.15657062,127.63,127.59,0.05682327]
[1768995965953,2.09747062,127.61,127.56,10.53080061]
[1768995967158,2.09747062,127.61,127.57,0.05883018]
[1768995967456,0.05571677,127.6,127.57,0.05883018]
[1768995969061,2.09747062,127.61,127.57,0.05883018]
[1768995972155,7.0595,127.62,127.57,0.05883018]
[1768995972156,7.0595,127.62,127.57,3.52713079]
[1768995972353,0.05555478,127.61,127.57,3.52713079]
[1768995974460,2.09747062,127.65,127.57,3.52713079]
[1768995974651,2.09747062,127.65,127.57,3.46830061]
[1768995974857,7.0591,127.63,127.57,3.46830061]
[1768995975654,0.05650416,127.61,127.59,0.05479647]
[1768995976663,2.09747062,127.65,127.59,3.44796057]
[1768995977257,2.09747062,127.65,127.59,10.50906057]
[1768995977764,0.05323749,127.63,127.59,10.50906057]
[1768995982272,0.05323749,127.63,127.6,7.0606]
[1768995989665,2.09747062,127.65,127.6,7.0606]
[1768995990877,2.09747062,127.61,127.54,3.3931641]
[1768995992069,9.15807062,127.61,127.56,0.05785945]
[1768995993980,9.15677062,127.63,127.56,3.45102355]
[1768995994273,7.0593,127.63,127.56,3.3931641]
[1768995994478,7.0593,127.63,127.58,0.05482265]
[1768995994676,9.15587062,127.65,127.58,3.44798675]
[1768995995278,0.04934778,127.63,127.58,3.44798675]
[1768995995672,0.04934778,127.63,127.58,10.50918675]
[1768995995877,0.04934778,127.63,127.59,3.3931641]
[1768995997082,0.04934778,127.63,127.6,10.4537641]
[1768995997682,2.09747062,127.65,127.6,10.4537641]
[1768995998772,2.09747062,127.65,127.61,0.05059311]
[1768995999472,2.09747062,127.63,127.58,3.3931641]
[1768996000481,2.09747062,127.63,127.59,0.05377025]
[1768996001380,2.09747062,127.61,127.54,3.3931641]
[1768996001581,2.09747062,127.59,127.54,3.3931641]
[1768996002379,2.09747062,127.59,127.55,0.05809082]
[1768996002777,0.05935369,127.58,127.55,0.05809082]
[1768996014577,0.05828377,127.63,127.55,3.40981185]
[1768996014781,0.05828377,127.63,127.55,3.35172103]
[1768996015686,0.05828377,127.63,127.58,0.0542281]
[1768996015888,7.0595,127.62,127.58,0.0542281]
[1768996017792,0.04988694,127.61,127.58,0.0542281]
[1768996018993,7.11008694,127.61,127.58,0.0542281]
[1768996019291,7.11008694,127.61,127.56,3.35172103]
[1768996020492,7.11008694,127.61,127.57,0.05597181]
[1768996020893,0.06142006,127.6,127.54,3.30819501]
[1768996021092,0.06142006,127.59,127.54,3.30819501]
[1768996022183,7.12272006,127.59,127.55,0.05400392]
[1768996023095,7.0618,127.58,127.55,0.05400392]
[1768996029504,0.06142006,127.59,127.49,2.10010021]
[1768996029705,3.36502666,127.57,127.49,2.10010021]
[1768996030606,3.36502666,127.57,127.52,0.0543744]
[1768996031105,7.0629,127.56,127.52,0.0543744]
[1768996031401,3.36502666,127.57,127.52,0.0543744]
[1768996033007,7.0634,127.55,127.52,0.0543744]
[1768996034111,7.1183278,127.55,127.52,0.0543744]
[1768996036016,7.0643,127.54,127.5,3.30819501]
[1768996036217,7.0643,127.54,127.48,3.4549252]
[1768996036218,3.20723172,127.54,127.48,3.4549252]
[1768996036517,3.20723172,127.53,127.48,3.4549252]
[1768996037019,7.0651,127.52,127.48,3.4549252]
[1768996037315,3.20723172,127.53,127.49,0.05443694]
[1768996039013,7.0646,127.53,127.49,3.50936214]
[1768996039206,0.05768866,127.52,127.49,3.50936214]
[1768996043522,7.12288866,127.52,127.49,3.50936214]
[1768996043820,3.26492038,127.52,127.45,7.0689]
[1768996044121,3.20723172,127.52,127.45,7.0689]
[1768996044922,7.0657,127.51,127.45,7.0689]
[1768996045317,3.20723172,127.52,127.43,7.0695]
[1768996045524,0.05391627,127.49,127.43,7.0695]
[1768996045915,0.05391627,127.49,127.44,10.5242252]
[1768996046115,0.05391627,127.49,127.45,3.4549252]
[1768996046314,5.30733193,127.52,127.45,3.4549252]
[1768996046822,7.0662,127.51,127.45,3.4549252]
[1768996047922,0.05812064,127.49,127.47,0.05579686]
[1768996050623,0.05812064,127.49,127.45,3.4549252]
[1768996057229,0.05812064,127.49,127.45,10.5238252]
[1768996063236,0.05812064,127.49,127.45,3.4549252]
[1768996063434,3.20723172,127.52,127.46,3.51295035]
[1768996063635,3.20723172,127.5,127.46,0.05802515]
[1768996063936,3.20723172,127.5,127.45,7.0689]
[1768996064830,3.20723172,127.5,127.45,10.5238252]
[1768996065329,12.52842646,127.51,127.46,3.4549252]
[1768996065829,0.05359439,127.5,127.47,0.05717458]
[1768996068628,10.42602625,127.56,127.5,3.29432486]
[1768996068831,3.36262625,127.57,127.5,3.29432486]
[1768996069226,3.36262625,127.56,127.5,3.29432486]
[1768996069839,3.36262625,127.56,127.52,0.05575754]
[1768996073241,10.42552625,127.56,127.52,0.05575754]
[1768996074834,0.05723113,127.55,127.52,0.05575754]
[1768996075339,0.05723113,127.55,127.52,3.3500824]
[1768996080340,109.8356,127.6,127.52,3.3500824]
[1768996080341,5.39005524,127.61,127.53,3.20442869]
[1768996080642,3.28961796,127.61,127.55,3.20442869]
[1768996080832,3.28961796,127.61,127.55,7.063]
[1768996081033,5.39005524,127.63,127.56,3.20442869]
[1768996081750,5.39005524,127.63,127.58,0.05066075]
[1768996081944,7.0596,127.62,127.58,0.05066075]
[1768996083947,0.05050695,127.61,127.58,0.05066075]
[1768996084548,3.28961796,127.65,127.59,3.20442869]
[1768996084742,3.28961796,127.65,127.6,5.30486597]
[1768996085140,3.28961796,127.66,127.58,3.20442869]
[1768996085350,3.28961796,127.66,127.59,3.20442869]
[1768996085543,3.28961796,127.66,127.6,5.30486597]
[1768996085746,3.28961796,127.66,127.61,0.05365709]
[1768996086341,0.04957707,127.65,127.61,0.05365709]
[1768996088044,0.04957707,127.65,127.61,3.25808578]
[1768996090749,3.28961796,127.68,127.61,3.25808578]
[1768996091952,0.05007094,127.66,127.62,10.26392869]
[1768996092354,0.05007094,127.66,127.63,0.05747235]
[1768996096251,2.10043728,127.7,127.63,3.24093769]
[1768996096252,3.35421447,127.7,127.63,3.24093769]
[1768996096457,3.35421447,127.7,127.65,3.18346534]
[1768996097161,3.35421447,127.7,127.65,10.24126534]
[1768996097460,3.35421447,127.72,127.66,3.24046397]
[1768996098063,0.05982263,127.7,127.66,3.24046397]
[1768996098959,0.05982263,127.7,127.66,10.29776397]
[1768996106563,3.4140371,127.7,127.66,0.05699863]
[1768996106763,5.51447438,127.7,127.66,0.05699863]
[1768996108161,5.51447438,127.7,127.64,10.24136534]
[1768996108671,3.35421447,127.69,127.64,3.18346534]
[1768996108967,5.45465175,127.69,127.64,3.18346534]
[1768996109168,5.45465175,127.69,127.65,0.05669575]
[1768996111469,3.35421447,127.69,127.65,0.05669575]
[1768996111664,5.45465175,127.69,127.65,0.05669575]
[1768996111862,0.05982263,127.7,127.65,3.24016109]
[1768996112369,3.35421447,127.7,127.65,3.24016109]
[1768996112574,3.35421447,127.7,127.65,0.05669575]
[1768996113260,0.05550716,127.69,127.65,0.05669575]
[1768996113761,2.15594444,127.69,127.65,0.05669575]
[1768996114768,2.15594444,127.69,127.65,3.24016109]
[1768996115364,0.05550716,127.69,127.65,3.24016109]
[1768996117080,2.15594444,127.69,127.65,3.24016109]
[1768996117879,3.35421447,127.73,127.65,3.24016109]
[1768996118169,3.35421447,127.79,127.71,3.18346534]
[1768996118374,5.45465175,127.77,127.71,3.18346534]
[1768996119076,0.05240773,127.75,127.73,0.05731701]
[1768996119282,9.20534501,127.75,127.69,3.18346534]
[1768996120177,7.053,127.74,127.69,3.18346534]
[1768996120376,7.053,127.74,127.71,0.05146488]
[1768996121368,2.15284501,127.75,127.71,0.05146488]
[1768996121774,0.05240773,127.75,127.71,3.23493022]
[1768996122077,10.40541447,127.78,127.71,3.23493022]
[1768996122871,10.40541447,127.78,127.71,10.28933022]
[1768996123382,0.0557858,127.76,127.71,10.28933022]
[1768996124578,0.0557858,127.76,127.72,3.18346534]
[1768996135785,7.1076858,127.76,127.72,3.18346534]
[1768996136087,10.26811711,127.76,127.71,0.05146488]
[1768996137190,7.1076858,127.76,127.71,3.51115624]
[1768996140790,3.47688033,127.74,127.67,3.45163583]
[1768996141280,2.09340719,127.71,127.65,3.45163583]
[1768996141484,2.09340719,127.69,127.62,3.45163583]
[1768996141884,2.09340719,127.69,127.64,0.05094628]
[1768996142283,5.57028752,127.67,127.6,3.45163583]
[1768996142485,2.09340719,127.66,127.6,3.45163583]
[1768996143494,2.09340719,127.66,127.62,0.05910666]
[1768996143692,0.05174282,127.64,127.62,0.05910666]
[1768996148499,5.62203034,127.64,127.58,3.45163583]
[1768996148698,5.57028752,127.64,127.58,3.45163583]
[1768996149590,0.05152464,127.62,127.6,0.05659389]
[1768996151191,0.05152464,127.62,127.58,3.45163583]
[1768996151392,2.14493183,127.62,127.56,3.45163583]
[1768996151698,2.09340719,127.62,127.56,3.45163583]
[1768996152194,3.47688033,127.61,127.53,3.45163583]
[1768996152393,5.62572939,127.6,127.53,3.45163583]
[1768996153286,5.62572939,127.6,127.54,3.45163583]
[1768996153692,5.62572939,127.6,127.56,0.05125028]
[1768996159302,5.62572939,127.6,127.5,109.9153]
[1768996159303,2.09340719,127.58,127.52,10.24049219]
[1768996159804,2.09340719,127.58,127.53,3.17549219]
[1768996160303,3.27404715,127.59,127.53,3.17549219]
[1768996161202,3.27404715,127.61,127.54,3.17549219]
[1768996161705,0.05302715,127.59,127.56,0.05956725]
[1768996162501,2.09340719,127.62,127.56,3.23505944]
[1768996162702,5.36745434,127.62,127.56,3.23505944]
[1768996163494,12.42705434,127.62,127.56,3.23505944]
[1768996164397,0.05439893,127.6,127.56,3.23505944]
[1768996168412,3.27404715,127.68,127.58,3.17549219]
[1768996168712,5.36745434,127.68,127.61,3.17549219]
[1768996169415,12.42365434,127.68,127.61,10.23559219]
[1768996169716,0.05913848,127.66,127.63,0.05792804]
[1768996170912,0.05913848,127.66,127.61,10.23559219]
[1768996171214,0.05913848,127.66,127.63,3.17549219]
[1768996171518,3.27404715,127.7,127.63,3.17549219]
[1768996171908,3.27404715,127.7,127.64,12.32729938]
[1768996172412,0.05125173,127.68,127.66,0.05792096]
[1768996175320,0.05125173,127.68,127.64,10.23389219]
[1768996176310,0.05125173,127.68,127.64,3.17549219]
[1768996176508,0.05125173,127.68,127.65,0.05159345]
[1768996179815,0.05125173,127.68,127.65,3.22708564]
[1768996181014,0.05125173,127.68,127.65,10.28488564]
[1768996182723,10.32864715,127.71,127.66,3.17549219]
[1768996185027,0.05365611,127.7,127.66,3.17549219]
[1768996189533,3.47045347,127.73,127.66,3.17549219]
[1768996189835,3.47045347,127.73,127.67,3.35354092]
[1768996190238,3.47045347,127.73,127.67,10.41034092]
[1768996190737,3.47045347,127.73,127.69,0.05310179]
[1768996193241,0.0600307,127.72,127.69,0.05310179]
[1768996193540,0.0600307,127.72,127.67,10.41034092]
[1768996194235,0.0600307,127.72,127.67,3.35354092]
[1768996194431,0.0600307,127.72,127.68,0.05409246]
[1768996196241,12.67967914,127.72,127.67,3.35354092]
[1768996197447,12.67967914,127.72,127.68,0.05859236]
[1768996200346,12.67967914,127.72,127.67,3.35354092]
[1768996201151,10.48993146,127.71,127.65,10.29182472]
[1768996201347,3.43533146,127.71,127.67,0.05104534]
[1768996201652,0.04953106,127.69,127.65,3.23402472]
[1768996203154,0.04953106,127.69,127.66,0.05290938]
[1768996210651,7.0543,127.72,127.66,3.2869341]
[1768996211053,10.48963146,127.72,127.66,3.2869341]
[1768996211361,10.49003146,127.71,127.66,3.2869341]
[1768996211858,0.05796582,127.7,127.66,3.2869341]
[1768996216260,3.44497128,127.7,127.66,0.05290938]
[1768996216953,12.59506625,127.7,127.66,0.05290938]
[1768996217159,3.38700546,127.69,127.64,3.23169532]
[1768996217358,3.38700546,127.69,127.62,3.23169532]
[1768996218359,0.05401518,127.67,127.62,3.23169532]
[1768996218761,7.0575,127.66,127.6,3.23169532]
[1768996218968,12.53940043,127.66,127.6,3.23169532]
[1768996219169,0.0589361,127.64,127.62,0.05650132]
[1768996221471,3.38700546,127.7,127.63,3.23169532]
[1768996221670,5.48190043,127.7,127.63,3.23169532]
[1768996222666,7.0557,127.69,127.63,3.23169532]
[1768996222871,0.05360351,127.68,127.65,0.05669901]
[1768996223372,0.05360351,127.68,127.65,3.28839433]
[1768996226269,0.05360351,127.68,127.65,0.05669901]
[1768996227875,7.11000351,127.68,127.63,3.23169532]
[1768996229975,7.0555,127.7,127.64,3.23169532]
[1768996230873,7.0558,127.69,127.64,3.23169532]
[1768996232276,7.0552,127.7,127.64,3.23169532]
[1768996233569,10.44220546,127.7,127.64,3.23169532]
[1768996235677,0.05846329,127.68,127.66,0.05348823]
[1768996244684,7.0546,127.71,127.66,3.28518355]
[1768996244874,10.44160546,127.71,127.66,3.28518355]
[1768996249480,3.38700546,127.71,127.66,10.34238355]
[1768996252688,3.38700546,127.71,127.66,7.11068823]
[1768996256494,3.38700546,127.71,127.66,0.05348823]
[1768996256793,5.4825502,127.71,127.66,0.05348823]
[1768996257094,12.5371502,127.71,127.66,0.05348823]
[1768996257995,0.04994921,127.7,127.66,0.05348823]
[1768996260993,7.10514921,127.7,127.66,0.05348823]
[1768996261194,3.34469148,127.7,127.66,0.05348823]
[1768996261395,3.34469148,127.7,127.63,10.44162065]
[1768996261591,10.35164227,127.67,127.61,3.38262065]
[1768996262892,10.35214227,127.66,127.6,3.38262065]
[1768996263099,2.09554474,127.65,127.6,3.38262065]
[1768996263799,3.29474227,127.68,127.61,3.38262065]
[1768996264988,10.35154227,127.67,127.61,10.44212065]
[1768996266399,10.35094227,127.68,127.62,3.38262065]
[1768996271004,10.35094227,127.68,127.62,10.44212065]
[1768996271205,10.35094227,127.68,127.62,3.38262065]
[1768996272400,7.0557,127.69,127.63,3.38262065]
[1768996272796,10.35044227,127.69,127.63,3.38262065]
[1768996274406,7.0562,127.68,127.63,3.38262065]
[1768996274908,3.29474227,127.67,127.62,10.44212065]
[1768996275300,3.29474227,127.67,127.62,3.38262065]
[1768996276710,0.04986215,127.66,127.63,0.04977213]
[1768996281314,3.25573576,127.66,127.63,0.04977213]
[1768996281517,3.25573576,127.66,127.6,3.15550352]
[1768996281707,3.20587361,127.65,127.6,3.15550352]
[1768996282108,3.20587361,127.65,127.59,7.0607]
[1768996282314,3.20587361,127.65,127.59,10.21620352]
[1768996282713,0.05934081,127.63,127.6,7.0606]
[1768996283216,0.05934081,127.63,127.59,3.15550352]
[1768996286216,0.05934081,127.63,127.59,10.21670352]
[1768996287911,0.05934081,127.63,127.6,0.05704918]
[1768996296215,7.11834081,127.63,127.6,0.05704918]
[1768996296410,10.32421442,127.63,127.57,10.21750352]
[1768996297123,7.0596,127.62,127.57,10.21750352]
[1768996297320,10.26547361,127.62,127.57,3.15550352]
[1768996297723,10.26597361,127.61,127.55,3.15550352]
[1768996298319,0.05770757,127.59,127.55,3.15550352]
[1768996298927,0.05770757,127.59,127.55,10.21890352]
[1768996302328,2.09554474,127.62,127.56,3.15550352]
[1768996302828,5.30141835,127.62,127.56,3.15550352]
[1768996303324,3.20587361,127.61,127.54,2.09554474]
[1768996303626,5.35477956,127.6,127.54,3.15550352]
[1768996304930,12.41547956,127.6,127.54,3.15550352]
[1768996305232,3.25923482,127.6,127.54,10.21930352]
[1768996305530,3.25923482,127.6,127.55,3.33775092]
[1768996306330,10.31993482,127.6,127.55,3.33775092]
[1768996311430,10.31993482,127.6,127.56,0.05603755]
[1768996314632,0.05336121,127.6,127.56,3.39378847]
[1768996314833,3.43561707,127.62,127.56,3.39378847]
[1768996315942,0.04984823,127.6,127.57,10.39975092]
[1768996316432,3.43561707,127.62,127.57,10.39975092]
[1768996318242,10.49521707,127.62,127.57,10.39975092]
[1768996319034,0.05340302,127.61,127.57,10.39975092]
[1768996324346,0.05340302,127.61,127.58,3.32145493]
[1768996324640,7.059,127.63,127.58,3.32145493]
[1768996325444,10.21057383,127.63,127.58,3.32145493]
[1768996325645,10.21057383,127.63,127.59,0.05992929]
[1768996326035,0.05634307,127.62,127.59,0.05992929]
[1768996328544,10.2677169,127.62,127.56,3.32145493]
[1768996329344,10.21187383,127.61,127.56,3.32145493]
[1768996329851,10.21187383,127.61,127.57,0.05799251]
[1768996330556,7.0607,127.6,127.57,0.05799251]
[1768996333444,10.21167383,127.61,127.57,0.05799251]
[1768996346766,3.22937372,127.6,127.57,0.05799251]
[1768996347659,3.22937372,127.59,127.54,3.4161621]
[1768996348762,2.09910841,127.6,127.52,304.80644727]
[1768996348763,3.22937372,127.58,127.52,3.4161621]
[1768996348967,3.28808523,127.58,127.52,3.4161621]
[1768996349359,3.28808523,127.58,127.54,0.05023113]
[1768996349560,3.22937372,127.57,127.54,0.05023113]
[1768996352370,0.05871151,127.58,127.54,0.05023113]
[1768996353563,3.28808523,127.58,127.54,0.05023113]
[1768996353763,3.22937372,127.57,127.54,0.05023113]
[1768996354271,10.29177372,127.57,127.54,0.05023113]
[1768996354572,10.29177372,127.57,127.51,10.4817621]
[1768996355874,0.04937515,127.55,127.51,10.4817621]
[1768996358064,3.27874887,127.55,127.49,3.4161621]
[1768996358971,10.34224887,127.55,127.5,3.4161621]